Workbook

Sheet Sheet1
A1: Обрезка | B1: Вес сляба | C1: Вес листа | D1: Крат | H1: 3.191
A2: =ABS((B2-C2*D2)/B2) -> 0.1162644939 | B2: 3.191 | C2: 1.41 | D2: =ROUNDDOWN(B2/C2,0) -> 2 | H2: 4.61
F9: X | G9: Y | H9: X-Y
F10: 5 | G10: 5.000005 | H10: =F10-G10 -> -5e-06

Sheet 1
A1: Сляб 1 | G1: Сляб 2
A2: Толщина | B2: Ширина | C2: Длина | D2: Вес | G2: Толщина | H2: Ширина | I2: Длина | J2: Вес | R2: не больше | U2: не больше
A3: 220 | B3: 1240 | C3: 1500 | D3: =A3*B3*C3*7.8/(10^9) -> 3.19176 | E3: min | G3: 270 | H3: 1240 | I3: 2171 | J3: =G3*H3*I3*7.8/(10^9) -> 5.66943624 | K3: min | M3: Лист | R3: =D4 -> 4.6174128 | U3: =J4 -> 6.920316
A4: 220 | B4: 1240 | C4: 2170 | D4: =A4*B4*C4*7.8/(10^9) -> 4.6174128 | E4: max | G4: 270 | H4: 1240 | I4: 2650 | J4: =G4*H4*I4*7.8/(10^9) -> 6.920316 | K4: max | M4: Толщина x Ширина | N4: Длина | O4: Толщина | P4: Ширина | Q4: Вес листа | R4: Вес сляба 1 | S4: Крат 1 | T4: Обрезка 1 | U4: Вес сляба 2 | V4: Крат 2 | W4: Обрезка 2
M5: 10X1500 | N5: 11650 | O5: =IF(LEN(M5)=7,LEFT(M5,2)+0,LEFT(M5,1)+0) -> 10 | P5: =RIGHT(M5,4)+0 -> 1500 | Q5: =N5*O5*P5*78/10^10 -> 1.36305 | R5: =$Q5*S5 -> 4.08915 | S5: =TRUNC(D$4/Q5) -> 3 | T5: =ABS((R5-Q5*S5)/R5) -> 0 | U5: =$Q5*V5 -> 6.81525 | V5: =TRUNC(J$4/Q5) -> 5 | W5: =ABS((U5-Q5*V5)/U5) -> 0
M6: 10X1500 | N6: 11900 | O6: =IF(LEN(M6)=7,LEFT(M6,2)+0,LEFT(M6,1)+0) -> 10 | P6: =RIGHT(M6,4)+0 -> 1500 | Q6: 1.3923 | R6: =$Q6*S6 -> 4.1769 | S6: =TRUNC(D$4/Q6) -> 3 | T6: =ABS((R6-Q6*S6)/R6) -> 0 | U6: =Q6*V6 -> 5.5692 | V6: =TRUNC(J$4/Q6) -> 4 | W6: =ABS((U6-Q6*V6)/U6) -> 0
M7: 10X1500 | N7: 12040 | O7: 10 | P7: 1500 | Q7: 1.40868 | R7: 4.22604 | S7: 3 | T7: =ABS((R7-Q7*S7)/R7) -> 0 | U7: 5.63472 | V7: 4 | W7: 0
M8: 10X1573 | N8: 11800 | O8: 10 | P8: 1573 | Q8: 1.4477892 | R8: 4.3433676 | S8: 3 | T8: =ABS((R8-Q8*S8)/R8) -> 0 | U8: 5.7911568 | V8: 4 | W8: 0
M9: 10X1582 | N9: 11900 | O9: 10 | P9: 1582 | Q9: 1.4684124 | R9: 4.4052372 | S9: 3 | T9: =ABS((R9-Q9*S9)/R9) -> 0 | U9: 5.8736496 | V9: 4 | W9: 0
M10: 10X1582 | N10: 12000 | O10: 10 | P10: 1582 | Q10: 1.480752 | R10: 4.442256 | S10: 3 | T10: =ABS((R10-Q10*S10)/R10) -> 0 | U10: 5.923008 | V10: 4 | W10: 0
M11: 10X1582 | N11: 12100 | O11: 10 | P11: 1582 | Q11: 1.4930916 | R11: 4.4792748 | S11: 3 | T11: =ABS((R11-Q11*S11)/R11) -> 0 | U11: 5.9723664 | V11: 4 | W11: 0
M12: 10X1582 | N12: 12200 | O12: 10 | P12: 1582 | Q12: 1.5054312 | R12: 4.5162936 | S12: 3 | T12: 0 | U12: 6.0217248 | V12: 4 | W12: 0
M13: 10X1624 | N13: 11800 | O13: 10 | P13: 1624 | Q13: 1.4947296 | R13: 4.4841888 | S13: 3 | T13: 0 | U13: 5.9789184 | V13: 4 | W13: 0
M14: 10X1624 | N14: 11800 | O14: 10 | P14: 1624 | Q14: 1.4947296 | R14: 4.4841888 | S14: 3 | T14: 0 | U14: 5.9789184 | V14: 4 | W14: 0
M15: 10X1624 | N15: 12000 | O15: 10 | P15: 1624 | Q15: 1.520064 | R15: 4.560192 | S15: 3 | T15: 0 | U15: 6.080256 | V15: 4 | W15: 0
M16: 10X1624 | N16: 12000 | O16: 10 | P16: 1624 | Q16: 1.520064 | R16: 4.560192 | S16: 3 | T16: 0 | U16: 6.080256 | V16: 4 | W16: 0
M17: 10X1624 | N17: 12000 | O17: 10 | P17: 1624 | Q17: 1.520064 | R17: 4.560192 | S17: 3 | T17: 0 | U17: 6.080256 | V17: 4 | W17: 0
M18: 10X1936 | N18: 11700 | O18: 10 | P18: 1936 | Q18: 1.7667936 | R18: 3.5335872 | S18: 2 | T18: 0 | U18: 5.3003808 | V18: 3 | W18: 0
M19: 10X1936 | N19: 12000 | O19: 10 | P19: 1936 | Q19: 1.812096 | R19: 3.624192 | S19: 2 | T19: 0 | U19: 5.436288 | V19: 3 | W19: 0
M20: 10X1936 | N20: 12000 | O20: 10 | P20: 1936 | Q20: 1.812096 | R20: 3.624192 | S20: 2 | T20: 0 | U20: 5.436288 | V20: 3 | W20: 0
M21: 10X2208 | N21: 12200 | O21: 10 | P21: 2208 | Q21: 2.1011328 | R21: 4.2022656 | S21: 2 | T21: 0 | U21: 6.3033984 | V21: 3 | W21: 0
M22: 10X2208 | N22: 12200 | O22: 10 | P22: 2208 | Q22: 2.1011328 | R22: 4.2022656 | S22: 2 | T22: 0 | U22: 6.3033984 | V22: 3 | W22: 0
M23: 10X2208 | N23: 12200 | O23: 10 | P23: 2208 | Q23: 2.1011328 | R23: 4.2022656 | S23: 2 | T23: 0 | U23: 6.3033984 | V23: 3 | W23: 0
M24: 10X2217 | N24: 11900 | O24: 10 | P24: 2217 | Q24: 2.0578194 | R24: 4.1156388 | S24: 2 | T24: 0 | U24: 6.1734582 | V24: 3 | W24: 0
M25: 10X2217 | N25: 12000 | O25: 10 | P25: 2217 | Q25: 2.075112 | R25: 4.150224 | S25: 2 | T25: 0 | U25: 6.225336 | V25: 3 | W25: 0
M26: 10X2218 | N26: 11900 | O26: 10 | P26: 2218 | Q26: 2.0587476 | R26: 4.1174952 | S26: 2 | T26: 0 | U26: 6.1762428 | V26: 3 | W26: 0
M27: 10X2218 | N27: 12040 | O27: 10 | P27: 2218 | Q27: 2.08296816 | R27: 4.16593632 | S27: 2 | T27: 0 | U27: 6.24890448 | V27: 3 | W27: 0
M28: 10X2525 | N28: 11600 | O28: 10 | P28: 2525 | Q28: 2.28462 | R28: 4.56924 | S28: 2 | T28: 0 | U28: 6.85386 | V28: 3 | W28: 0
M29: 10X2525 | N29: 11700 | O29: 10 | P29: 2525 | Q29: 2.304315 | R29: 4.60863 | S29: 2 | T29: 0 | U29: 6.912945 | V29: 3 | W29: 0
M30: 10X2525 | N30: 11800 | O30: 10 | P30: 2525 | Q30: 2.32401 | R30: 2.32401 | S30: 1 | T30: 0 | U30: 4.64802 | V30: 2 | W30: 0
M31: 10X2525 | N31: 12000 | O31: 10 | P31: 2525 | Q31: 2.3634 | R31: 2.3634 | S31: 1 | T31: 0 | U31: 4.7268 | V31: 2 | W31: 0
M32: 10X2529 | N32: 11500 | O32: 10 | P32: 2529 | Q32: 2.268513 | R32: 4.537026 | S32: 2 | T32: 0 | U32: 6.805539 | V32: 3 | W32: 0
M33: 10X2529 | N33: 11600 | O33: 10 | P33: 2529 | Q33: 2.2882392 | R33: 4.5764784 | S33: 2 | T33: 0 | U33: 6.8647176 | V33: 3 | W33: 0
M34: 10X2529 | N34: 11700 | O34: 10 | P34: 2529 | Q34: 2.3079654 | R34: 4.6159308 | S34: 2 | T34: 0 | U34: 4.6159308 | V34: 2 | W34: 0
M35: 10X2529 | N35: 11800 | O35: 10 | P35: 2529 | Q35: 2.3276916 | R35: 2.3276916 | S35: 1 | T35: 0 | U35: 4.6553832 | V35: 2 | W35: 0
M36: 10X2529 | N36: 12000 | O36: 10 | P36: 2529 | Q36: 2.367144 | R36: 2.367144 | S36: 1 | T36: 0 | U36: 4.734288 | V36: 2 | W36: 0
M37: 10X2529 | N37: 12000 | O37: 10 | P37: 2529 | Q37: 2.367144 | R37: 2.367144 | S37: 1 | T37: 0 | U37: 4.734288 | V37: 2 | W37: 0
M38: 11X1621 | N38: 11850 | O38: 11 | P38: 1621 | Q38: 1.64811933 | R38: 3.29623866 | S38: 2 | T38: 0 | U38: 6.59247732 | V38: 4 | W38: 0
M39: 11X2213 | N39: 12200 | O39: 11 | P39: 2213 | Q39: 2.31647988 | R39: 2.31647988 | S39: 1 | T39: 0 | U39: 4.63295976 | V39: 2 | W39: 0
M40: 11X2214 | N40: 12000 | O40: 11 | P40: 2214 | Q40: 2.2795344 | R40: 4.5590688 | S40: 2 | T40: 0 | U40: 6.8386032 | V40: 3 | W40: 0
M41: 11X2215 | N41: 11900 | O41: 11 | P41: 2215 | Q41: 2.2615593 | R41: 4.5231186 | S41: 2 | T41: 0 | U41: 6.7846779 | V41: 3 | W41: 0
M42: 11X2215 | N42: 12040 | O42: 11 | P42: 2215 | Q42: 2.28816588 | R42: 4.57633176 | S42: 2 | T42: 0 | U42: 6.86449764 | V42: 3 | W42: 0
M43: 12X1570 | N43: 11600 | O43: 12 | P43: 1570 | Q43: 1.7046432 | R43: 3.4092864 | S43: 2 | T43: 0 | U43: 6.8185728 | V43: 4 | W43: 0
M44: 12X1570 | N44: 11650 | O44: 12 | P44: 1570 | Q44: 1.7119908 | R44: 3.4239816 | S44: 2 | T44: 0 | U44: 6.8479632 | V44: 4 | W44: 0
M45: 12X1570 | N45: 11700 | O45: 12 | P45: 1570 | Q45: 1.7193384 | R45: 3.4386768 | S45: 2 | T45: 0 | U45: 6.8773536 | V45: 4 | W45: 0
M46: 12X1570 | N46: 11800 | O46: 12 | P46: 1570 | Q46: 1.7340336 | R46: 3.4680672 | S46: 2 | T46: 0 | U46: 5.2021008 | V46: 3 | W46: 0
M47: 12X1570 | N47: 11800 | O47: 12 | P47: 1570 | Q47: 1.7340336 | R47: 3.4680672 | S47: 2 | T47: 0 | U47: 5.2021008 | V47: 3 | W47: 0
M48: 12X1570 | N48: 11800 | O48: 12 | P48: 1570 | Q48: 1.7340336 | R48: 3.4680672 | S48: 2 | T48: 0 | U48: 5.2021008 | V48: 3 | W48: 0
M49: 12X1611 | N49: 12200 | O49: 12 | P49: 1611 | Q49: 1.83963312 | R49: 3.67926624 | S49: 2 | T49: 0 | U49: 5.51889936 | V49: 3 | W49: 0
M50: 12X1883 | N50: 11800 | O50: 12 | P50: 1883 | Q50: 2.07973584 | R50: 4.15947168 | S50: 2 | T50: 0 | U50: 6.23920752 | V50: 3 | W50: 0
M51: 12X1930 | N51: 11800 | O51: 12 | P51: 1930 | Q51: 2.1316464 | R51: 4.2632928 | S51: 2 | T51: 0 | U51: 6.3949392 | V51: 3 | W51: 0
M52: 12X1930 | N52: 12000 | O52: 12 | P52: 1930 | Q52: 2.167776 | R52: 4.335552 | S52: 2 | T52: 0 | U52: 6.503328 | V52: 3 | W52: 0
M53: 12X1930 | N53: 12000 | O53: 12 | P53: 1930 | Q53: 2.167776 | R53: 4.335552 | S53: 2 | T53: 0 | U53: 6.503328 | V53: 3 | W53: 0
M54: 12X2202 | N54: 12200 | O54: 12 | P54: 2202 | Q54: 2.51450784 | R54: 2.51450784 | S54: 1 | T54: 0 | U54: 5.02901568 | V54: 2 | W54: 0
M55: 12X2210 | N55: 12000 | O55: 12 | P55: 2210 | Q55: 2.482272 | R55: 2.482272 | S55: 1 | T55: 0 | U55: 4.964544 | V55: 2 | W55: 0
M56: 12X2210 | N56: 12000 | O56: 12 | P56: 2210 | Q56: 2.482272 | R56: 2.482272 | S56: 1 | T56: 0 | U56: 4.964544 | V56: 2 | W56: 0
M57: 12X2210 | N57: 12000 | O57: 12 | P57: 2210 | Q57: 2.482272 | R57: 2.482272 | S57: 1 | T57: 0 | U57: 4.964544 | V57: 2 | W57: 0
M58: 12X2513 | N58: 12200 | O58: 12 | P58: 2513 | Q58: 2.86964496 | R58: 2.86964496 | S58: 1 | T58: 0 | U58: 5.73928992 | V58: 2 | W58: 0
M59: 12X2522 | N59: 11800 | O59: 12 | P59: 2522 | Q59: 2.78549856 | R59: 2.78549856 | S59: 1 | T59: 0 | U59: 5.57099712 | V59: 2 | W59: 0
M60: 12X2522 | N60: 11850 | O60: 12 | P60: 2522 | Q60: 2.79730152 | R60: 2.79730152 | S60: 1 | T60: 0 | U60: 5.59460304 | V60: 2 | W60: 0
M61: 12X2522 | N61: 12000 | O61: 12 | P61: 2522 | Q61: 2.8327104 | R61: 2.8327104 | S61: 1 | T61: 0 | U61: 5.6654208 | V61: 2 | W61: 0
M62: 12X2522 | N62: 12000 | O62: 12 | P62: 2522 | Q62: 2.8327104 | R62: 2.8327104 | S62: 1 | T62: 0 | U62: 5.6654208 | V62: 2 | W62: 0
M63: 12X2523 | N63: 10200 | O63: 12 | P63: 2523 | Q63: 2.40875856 | R63: 2.40875856 | S63: 1 | T63: 0 | U63: 4.81751712 | V63: 2 | W63: 0
M64: 12X2523 | N64: 11500 | O64: 12 | P64: 2523 | Q64: 2.7157572 | R64: 2.7157572 | S64: 1 | T64: 0 | U64: 5.4315144 | V64: 2 | W64: 0
M65: 12X2523 | N65: 11900 | O65: 12 | P65: 2523 | Q65: 2.81021832 | R65: 2.81021832 | S65: 1 | T65: 0 | U65: 5.62043664 | V65: 2 | W65: 0
M66: 12X2523 | N66: 12040 | O66: 12 | P66: 2523 | Q66: 2.843279712 | R66: 2.843279712 | S66: 1 | T66: 0 | U66: 5.686559424 | V66: 2 | W66: 0
M67: 13X1611 | N67: 12000 | O67: 13 | P67: 1611 | Q67: 1.9602648 | R67: 3.9205296 | S67: 2 | T67: 0 | U67: 5.8807944 | V67: 3 | W67: 0
M68: 13X1881 | N68: 11800 | O68: 13 | P68: 1881 | Q68: 2.25065412 | R68: 4.50130824 | S68: 2 | T68: 0 | U68: 6.75196236 | V68: 3 | W68: 0
M69: 13X1881 | N69: 11800 | O69: 13 | P69: 1881 | Q69: =N69*O69*P69*78/10^10 -> 2.25065412 | R69: 4.50130824 | S69: 2 | T69: 0 | U69: 6.75196236 | V69: 3 | W69: 0
M70: 13X2202 | N70: 12000 | O70: =IF(LEN(M70)=7,LEFT(M70,2)+0,LEFT(M70,1)+0) -> 13 | P70: =RIGHT(M70,4)+0 -> 2202 | Q70: 2.6793936 | R70: =$Q70*S70 -> 2.6793936 | S70: =TRUNC(D$4/Q70) -> 1 | T70: =ABS((R70-Q70*S70)/R70) -> 0 | U70: =Q70*V70 -> 5.3587872 | V70: =TRUNC(J$4/Q70) -> 2 | W70: =ABS((U70-Q70*V70)/U70) -> 0
M71: 13X2202 | N71: 12050 | O71: 13 | P71: 2202 | Q71: 2.69055774 | R71: 2.69055774 | S71: 1 | T71: 0 | U71: 5.38111548 | V71: 2 | W71: 0
M72: 14,10X1567 | N72: 11800 | O72: 1 | P72: 1567 | Q72: 0.14422668 | R72: 4.61525376 | S72: 32 | T72: 0 | U72: 6.77865396 | V72: 47 | W72: 0
M73: 14X1567 | N73: 11800 | O73: 14 | P73: 1567 | Q73: 2.01917352 | R73: 4.03834704 | S73: 2 | T73: 0 | U73: 6.05752056 | V73: 3 | W73: 0
M74: 14X1643 | N74: 11650 | O74: 14 | P74: 1643 | Q74: 2.09019174 | R74: 4.18038348 | S74: 2 | T74: 0 | U74: 6.27057522 | V74: 3 | W74: 0
M75: 14X1643 | N75: 11800 | O75: 14 | P75: 1643 | Q75: 2.11710408 | R75: 4.23420816 | S75: 2 | T75: 0 | U75: 6.35131224 | V75: 3 | W75: 0
M76: 14X1643 | N76: 11800 | O76: 14 | P76: 1643 | Q76: 2.11710408 | R76: 4.23420816 | S76: 2 | T76: 0 | U76: 6.35131224 | V76: 3 | W76: 0
M77: 14X1879 | N77: 11800 | O77: 14 | P77: 1879 | Q77: 2.42120424 | R77: 2.42120424 | S77: 1 | T77: 0 | U77: 4.84240848 | V77: 2 | W77: 0
M78: 14X2199 | N78: 12000 | O78: 14 | P78: 2199 | Q78: 2.8815696 | R78: 2.8815696 | S78: 1 | T78: 0 | U78: 5.7631392 | V78: 2 | W78: 0
M79: 14X2510 | N79: 11500 | O79: 14 | P79: 2510 | Q79: 3.152058 | R79: 3.152058 | S79: 1 | T79: 0 | U79: 6.304116 | V79: 2 | W79: 0
M80: 14X2510 | N80: 11500 | O80: 14 | P80: 2510 | Q80: 3.152058 | R80: 3.152058 | S80: 1 | T80: 0 | U80: 6.304116 | V80: 2 | W80: 0
M81: 14X2510 | N81: 11800 | O81: 14 | P81: 2510 | Q81: 3.2342856 | R81: 3.2342856 | S81: 1 | T81: 0 | U81: 6.4685712 | V81: 2 | W81: 0
M82: 14X2510 | N82: 11800 | O82: 14 | P82: 2510 | Q82: 3.2342856 | R82: 3.2342856 | S82: 1 | T82: 0 | U82: 6.4685712 | V82: 2 | W82: 0
M83: 14X2510 | N83: 11800 | O83: 14 | P83: 2510 | Q83: 3.2342856 | R83: 3.2342856 | S83: 1 | T83: 0 | U83: 6.4685712 | V83: 2 | W83: 0
M84: 14X2510 | N84: 11800 | O84: 14 | P84: 2510 | Q84: 3.2342856 | R84: 3.2342856 | S84: 1 | T84: 0 | U84: 6.4685712 | V84: 2 | W84: 0
M85: 14X2510 | N85: 11850 | O85: 14 | P85: 2510 | Q85: 3.2479902 | R85: 3.2479902 | S85: 1 | T85: 0 | U85: 6.4959804 | V85: 2 | W85: 0
M86: 14X2510 | N86: 11850 | O86: 14 | P86: 2510 | Q86: 3.2479902 | R86: 3.2479902 | S86: 1 | T86: 0 | U86: 6.4959804 | V86: 2 | W86: 0
M87: 14X2510 | N87: 11900 | O87: 14 | P87: 2510 | Q87: 3.2616948 | R87: 3.2616948 | S87: 1 | T87: 0 | U87: 6.5233896 | V87: 2 | W87: 0
M88: 14X2510 | N88: 11900 | O88: 14 | P88: 2510 | Q88: 3.2616948 | R88: 3.2616948 | S88: 1 | T88: 0 | U88: 6.5233896 | V88: 2 | W88: 0
M89: 14X2510 | N89: 12000 | O89: 14 | P89: 2510 | Q89: 3.289104 | R89: 3.289104 | S89: 1 | T89: 0 | U89: 6.578208 | V89: 2 | W89: 0
M90: 14X2510 | N90: 12000 | O90: 14 | P90: 2510 | Q90: 3.289104 | R90: 3.289104 | S90: 1 | T90: 0 | U90: 6.578208 | V90: 2 | W90: 0
M91: 14X2510 | N91: 12000 | O91: 14 | P91: 2510 | Q91: 3.289104 | R91: 3.289104 | S91: 1 | T91: 0 | U91: 6.578208 | V91: 2 | W91: 0
M92: 14X2510 | N92: 12000 | O92: 14 | P92: 2510 | Q92: 3.289104 | R92: 3.289104 | S92: 1 | T92: 0 | U92: 6.578208 | V92: 2 | W92: 0
M93: 14X2517 | N93: 10500 | O93: 14 | P93: 2517 | Q93: 2.8859922 | R93: 2.8859922 | S93: 1 | T93: 0 | U93: 5.7719844 | V93: 2 | W93: 0
M94: 14X2517 | N94: 12040 | O94: 14 | P94: 2517 | Q94: 3.309271056 | R94: 3.309271056 | S94: 1 | T94: 0 | U94: 6.618542112 | V94: 2 | W94: 0
M95: 15X1565 | N95: 11800 | O95: 15 | P95: 1565 | Q95: 2.160639 | R95: 4.321278 | S95: 2 | T95: 0 | U95: 6.481917 | V95: 3 | W95: 0
M96: 15X1605 | N96: 12000 | O96: 15 | P96: 1605 | Q96: 2.25342 | R96: 4.50684 | S96: 2 | T96: 0 | U96: 6.76026 | V96: 3 | W96: 0
M97: 16X1599 | N97: 12200 | O97: 16 | P97: 1599 | Q97: 2.43457344 | R97: 2.43457344 | S97: 1 | T97: 0 | U97: 4.86914688 | V97: 2 | W97: 0
M98: 16X1913 | N98: 12000 | O98: 16 | P98: 1913 | Q98: 2.8649088 | R98: 2.8649088 | S98: 1 | T98: 0 | U98: 5.7298176 | V98: 2 | W98: 0
M99: 16X2190 | N99: 12200 | O99: 16 | P99: 2190 | Q99: 3.3344064 | R99: 3.3344064 | S99: 1 | T99: 0 | U99: 6.6688128 | V99: 2 | W99: 0
M100: 16X2511 | N100: 10200 | O100: 16 | P100: 2511 | Q100: 3.19640256 | R100: 3.19640256 | S100: 1 | T100: 0 | U100: 6.39280512 | V100: 2 | W100: 0
M101: 16X2511 | N101: 11000 | O101: 16 | P101: 2511 | Q101: 3.4471008 | R101: 3.4471008 | S101: 1 | T101: 0 | U101: 6.8942016 | V101: 2 | W101: 0
M102: 16X2511 | N102: 12040 | O102: 16 | P102: 2511 | Q102: 3.773008512 | R102: 3.773008512 | S102: 1 | T102: 0 | U102: 3.773008512 | V102: 1 | W102: 0
M103: 17X1875 | N103: 11800 | O103: 17 | P103: 1875 | Q103: 2.933775 | R103: 2.933775 | S103: 1 | T103: 0 | U103: 5.86755 | V103: 2 | W103: 0
M104: 17X2187 | N104: 12200 | O104: 17 | P104: 2187 | Q104: 3.53795364 | R104: 3.53795364 | S104: 1 | T104: 0 | U104: 3.53795364 | V104: 1 | W104: 0
M105: 18X1561 | N105: 11800 | O105: 18 | P105: 1561 | Q105: 2.58613992 | R105: 2.58613992 | S105: 1 | T105: 0 | U105: 5.17227984 | V105: 2 | W105: 0
